[Event "*** MasterClass Titled Tuesday Blitz"]
[Site "Chess.com"]
[Date "2017.10.03"]
[Round "3"]
[White "Bengalas"]
[Black "Sethu0025"]
[Result "1/2-1/2"]
[WhiteElo "2527"]
[BlackElo "2637"]
[TimeControl "180+2"]
[EndTime "13:37:31 PDT"]
[Termination "Game drawn - insufficient material"]

1. d4 {[%clk 0:03:01.9]} 1... Nf6 {[%clk 0:03:00.2]} 2. c4 {[%clk 0:03:02.2]}
2... e6 {[%clk 0:03:01.4]} 3. Nc3 {[%clk 0:03:02.8]} 3... Bb4 {[%clk 0:03:01.9]}
4. Qc2 {[%clk 0:03:03.6]} 4... O-O {[%clk 0:03:01.8]} 5. Nf3 {[%clk 0:03:04]}
5... d5 {[%clk 0:03:02.1]} 6. cxd5 {[%clk 0:03:04.5]} 6... exd5 {[%clk
0:03:02.6]} 7. Bg5 {[%clk 0:03:04.8]} 7... h6 {[%clk 0:03:03.3]} 8. Bxf6 {[%clk
0:03:05.3]} 8... Qxf6 {[%clk 0:03:03.9]} 9. e3 {[%clk 0:03:06.5]} 9... Be6
{[%clk 0:03:03.9]} 10. Bd3 {[%clk 0:03:02.5]} 10... Nd7 {[%clk 0:03:04.5]} 11.
a3 {[%clk 0:03:01.3]} 11... Bxc3+ {[%clk 0:03:04.6]} 12. Qxc3 {[%clk 0:02:59.6]}
12... c5 {[%clk 0:03:05.6]} 13. dxc5 {[%clk 0:02:37]} 13... Qxc3+ {[%clk
0:03:05.5]} 14. bxc3 {[%clk 0:02:38.2]} 14... Nxc5 {[%clk 0:03:07.2]} 15. Bc2
{[%clk 0:02:39.1]} 15... Rac8 {[%clk 0:03:07.8]} 16. Kd2 {[%clk 0:02:37.8]}
16... Rfd8 {[%clk 0:03:03.8]} 17. Nd4 {[%clk 0:02:38.3]} 17... Bd7 {[%clk
0:03:04.7]} 18. Rhb1 {[%clk 0:02:27.7]} 18... Kf8 {[%clk 0:03:03.2]} 19. a4
{[%clk 0:02:25.6]} 19... Ke7 {[%clk 0:03:03]} 20. a5 {[%clk 0:02:25.7]} 20...
Rc7 {[%clk 0:03:04]} 21. h4 {[%clk 0:02:19.3]} 21... Rdc8 {[%clk 0:03:05]} 22.
Ra3 {[%clk 0:02:17.1]} 22... h5 {[%clk 0:03:05.5]} 23. Ne2 {[%clk 0:02:00.6]}
23... g6 {[%clk 0:03:04.1]} 24. Rb4 {[%clk 0:01:54.8]} 24... Kd6 {[%clk
0:03:03.9]} 25. Nd4 {[%clk 0:01:49.4]} 25... Ke7 {[%clk 0:02:59.6]} 26. Ne2
{[%clk 0:01:49.3]} 26... Be6 {[%clk 0:02:59.8]} 27. Nd4 {[%clk 0:01:48.1]} 27...
Nd7 {[%clk 0:02:55.9]} 28. Nb5 {[%clk 0:01:39.1]} 28... Rc5 {[%clk 0:02:46.3]}
29. Nxa7 {[%clk 0:01:36]} 29... Ra8 {[%clk 0:02:43]} 30. Rxb7 {[%clk 0:01:27.9]}
30... Kd8 {[%clk 0:02:43.4]} 31. a6 {[%clk 0:01:04.6]} 31... Ne5 {[%clk
0:02:37.2]} 32. Bd3 {[%clk 0:01:05.6]} 32... Bf5 {[%clk 0:02:31.2]} 33. Be2
{[%clk 0:01:01.9]} 33... Bd7 {[%clk 0:02:26.2]} 34. Nb5 {[%clk 0:00:54.7]} 34...
Bxb5 {[%clk 0:02:24.1]} 35. Rxb5 {[%clk 0:00:54.1]} 35... Rxb5 {[%clk
0:02:22.4]} 36. Bxb5 {[%clk 0:00:55.1]} 36... Kc7 {[%clk 0:02:23.6]} 37. Be2
{[%clk 0:00:36]} 37... Ra7 {[%clk 0:02:20.8]} 38. Ra5 {[%clk 0:00:28.4]} 38...
Kd6 {[%clk 0:02:14]} 39. Kc2 {[%clk 0:00:26.7]} 39... Nc6 {[%clk 0:02:09.1]} 40.
Ra4 {[%clk 0:00:26.7]} 40... Kc5 {[%clk 0:02:09.3]} 41. f3 {[%clk 0:00:21.3]}
41... Ne5 {[%clk 0:02:09.4]} 42. Ra5+ {[%clk 0:00:20.4]} 42... Kd6 {[%clk
0:02:09.3]} 43. Ra4 {[%clk 0:00:19.2]} 43... Kc5 {[%clk 0:02:09.4]} 44. Kd2
{[%clk 0:00:19.3]} 44... Nc6 {[%clk 0:01:57.2]} 45. g4 {[%clk 0:00:19.1]} 45...
Ne5 {[%clk 0:01:44.3]} 46. gxh5 {[%clk 0:00:15.5]} 46... gxh5 {[%clk 0:01:46.2]}
47. Ra5+ {[%clk 0:00:16.3]} 47... Kd6 {[%clk 0:01:44.7]} 48. f4 {[%clk
0:00:17.3]} 48... Nd7 {[%clk 0:01:39.9]} 49. c4 {[%clk 0:00:17.6]} 49... Nc5
{[%clk 0:01:37.6]} 50. Kc3 {[%clk 0:00:16.3]} 50... Rxa6 {[%clk 0:01:37]} 51.
Rxa6+ {[%clk 0:00:16.7]} 51... Nxa6 {[%clk 0:01:38]} 52. cxd5 {[%clk 0:00:17.9]}
52... Nc7 {[%clk 0:01:34.4]} 53. Bxh5 {[%clk 0:00:13.8]} 53... Nxd5+ {[%clk
0:01:33.7]} 54. Kd4 {[%clk 0:00:14.9]} 54... f5 {[%clk 0:01:33.3]} 55. Bf3
{[%clk 0:00:15.2]} 55... Nf6 {[%clk 0:01:33.9]} 56. h5 {[%clk 0:00:16.4]} 56...
Ke6 {[%clk 0:01:35.3]} 57. h6 {[%clk 0:00:17.5]} 57... Kf7 {[%clk 0:01:36.5]}
58. e4 {[%clk 0:00:18.7]} 58... fxe4 {[%clk 0:01:36.2]} 59. Bxe4 {[%clk
0:00:19.6]} 59... Ng4 {[%clk 0:01:37.2]} 60. Bd3 {[%clk 0:00:19.4]} 60... Nxh6
{[%clk 0:01:37.6]} 61. Ke5 {[%clk 0:00:19.8]} 61... Ng4+ {[%clk 0:01:36]} 62.
Kf5 {[%clk 0:00:20.4]} 62... Nf6 {[%clk 0:01:36]} 63. Bc4+ {[%clk 0:00:21.1]}
63... Kg7 {[%clk 0:01:36.5]} 64. Kg5 {[%clk 0:00:21.1]} 64... Ne4+ {[%clk
0:01:37.4]} 65. Kg4 {[%clk 0:00:22.1]} 65... Nd6 {[%clk 0:01:37.8]} 66. Bd3
{[%clk 0:00:22.4]} 66... Kf6 {[%clk 0:01:39]} 67. f5 {[%clk 0:00:23.2]} 67...
Nxf5 {[%clk 0:01:40]} 68. Bxf5 {[%clk 0:00:24.4]} 1/2-1/2

[Event "*** MasterClass Titled Tuesday Blitz"]
[Site "Chess.com"]
[Date "2017.10.03"]
[Round "3"]
[White "matiss90"]
[Black "chessdjw"]
[Result "0-1"]
[WhiteElo "2272"]
[BlackElo "2238"]
[TimeControl "180+2"]
[EndTime "13:37:34 PDT"]
[Termination "chessdjw won by checkmate"]

1. e4 {[%clk 0:03:01.9]} 1... e5 {[%clk 0:03:00.3]} 2. Nf3 {[%clk 0:03:02.4]}
2... Nc6 {[%clk 0:03:01.8]} 3. Nc3 {[%clk 0:03:03.9]} 3... Nf6 {[%clk
0:03:02.3]} 4. a3 {[%clk 0:03:05.3]} 4... d5 {[%clk 0:03:02.6]} 5. exd5 {[%clk
0:03:05.9]} 5... Nxd5 {[%clk 0:03:04.5]} 6. Nxe5 {[%clk 0:03:07]} 6... Nxe5
{[%clk 0:02:54]} 7. Qe2 {[%clk 0:03:07.6]} 7... Nxc3 {[%clk 0:02:39.1]} 8. Qxe5+
{[%clk 0:03:04.1]} 8... Be7 {[%clk 0:02:40.3]} 9. dxc3 {[%clk 0:02:51.6]} 9...
O-O {[%clk 0:02:40.5]} 10. Bd3 {[%clk 0:02:48.8]} 10... Bd6 {[%clk 0:02:25.5]}
11. Qh5 {[%clk 0:02:47.6]} 11... Re8+ {[%clk 0:02:25]} 12. Be3 {[%clk 0:02:48]}
12... g6 {[%clk 0:02:26.3]} 13. Qf3 {[%clk 0:02:48.5]} 13... Qh4 {[%clk
0:02:20.1]} 14. h3 {[%clk 0:02:37.6]} 14... Bd7 {[%clk 0:02:19.1]} 15. g3 {[%clk
0:02:18.6]} 15... Qa4 {[%clk 0:02:11.5]} 16. O-O {[%clk 0:01:58.7]} 16... Bxh3
{[%clk 0:02:07.6]} 17. Rfe1 {[%clk 0:01:59.2]} 17... Qg4 {[%clk 0:01:41.6]} 18.
Qxg4 {[%clk 0:01:37]} 18... Bxg4 {[%clk 0:01:43.5]} 19. Kg2 {[%clk 0:01:28.3]}
19... h5 {[%clk 0:01:38.1]} 20. Bd4 {[%clk 0:01:23.6]} 20... Bd7 {[%clk
0:01:30.5]} 21. f3 {[%clk 0:01:13.2]} 21... Bc6 {[%clk 0:01:29.1]} 22. c4 {[%clk
0:01:04.5]} 22... b6 {[%clk 0:01:24.1]} 23. Kf2 {[%clk 0:00:54.3]} 23... a5
{[%clk 0:01:22.5]} 24. Rh1 {[%clk 0:00:21.9]} 24... Rad8 {[%clk 0:01:17.6]} 25.
g4 {[%clk 0:00:19.8]} 25... Be7 {[%clk 0:01:06.5]} 26. c3 {[%clk 0:00:15.1]}
26... h4 {[%clk 0:01:06.5]} 27. Rae1 {[%clk 0:00:13]} 27... Bg5 {[%clk
0:01:04.3]} 28. Rxe8+ {[%clk 0:00:12.2]} 28... Rxe8 {[%clk 0:01:06.2]} 29. Re1
{[%clk 0:00:09.4]} 29... Rxe1 {[%clk 0:01:05.3]} 30. Kxe1 {[%clk 0:00:10.3]}
30... Bc1 {[%clk 0:01:06.1]} 31. b4 {[%clk 0:00:07.9]} 31... Bxf3 {[%clk
0:01:05.3]} 32. bxa5 {[%clk 0:00:06.9]} 32... bxa5 {[%clk 0:01:07.2]} 33. a4
{[%clk 0:00:07.5]} 33... Bxg4 {[%clk 0:01:07.9]} 34. Be5 {[%clk 0:00:05.8]}
34... c5 {[%clk 0:01:07.7]} 35. Bc7 {[%clk 0:00:06.5]} 35... Bd7 {[%clk
0:01:07.5]} 36. Bc2 {[%clk 0:00:06.2]} 36... h3 {[%clk 0:01:08.2]} 37. Kf2
{[%clk 0:00:06.3]} 37... g5 {[%clk 0:00:52.6]} 38. Bxa5 {[%clk 0:00:06.4]} 38...
Bf4 {[%clk 0:00:52.3]} 39. Be4 {[%clk 0:00:06.6]} 39... Bxa4 {[%clk 0:00:52.5]}
40. Bb6 {[%clk 0:00:05.4]} 40... Bd6 {[%clk 0:00:50.3]} 41. Bd8 {[%clk
0:00:05.2]} 41... g4 {[%clk 0:00:50.6]} 42. Bh4 {[%clk 0:00:06.4]} 42... Bd7
{[%clk 0:00:49.6]} 43. Bg3 {[%clk 0:00:04.8]} 43... Bxg3+ {[%clk 0:00:49]} 44.
Kxg3 {[%clk 0:00:06.6]} 44... f5 {[%clk 0:00:50.2]} 45. Bd5+ {[%clk 0:00:06.8]}
45... Kg7 {[%clk 0:00:51.2]} 46. Kf4 {[%clk 0:00:08]} 46... Kf6 {[%clk
0:00:52.3]} 47. Bh1 {[%clk 0:00:08.5]} 47... Be6 {[%clk 0:00:52.4]} 48. Kg3
{[%clk 0:00:03.9]} 48... Kg5 {[%clk 0:00:51.5]} 49. Bd5 {[%clk 0:00:04.1]} 49...
f4+ {[%clk 0:00:52.8]} 50. Kh2 {[%clk 0:00:05]} 50... g3+ {[%clk 0:00:54.1]} 51.
Kg1 {[%clk 0:00:06.1]} 51... h2+ {[%clk 0:00:54.9]} 52. Kg2 {[%clk 0:00:06.8]}
52... Bxd5+ {[%clk 0:00:54.9]} 53. cxd5 {[%clk 0:00:07.9]} 53... f3+ {[%clk
0:00:56.3]} 54. Kh1 {[%clk 0:00:07.5]} 54... f2 {[%clk 0:00:57.7]} 55. Kg2
{[%clk 0:00:08.5]} 55... h1=Q+ {[%clk 0:00:59.1]} 56. Kxh1 {[%clk 0:00:09.2]}
56... f1=Q# {[%clk 0:01:00.3]} 0-1

[Event "*** MasterClass Titled Tuesday Blitz"]
[Site "Chess.com"]
[Date "2017.10.03"]
[Round "3"]
[White "Buffy7"]
[Black "krzyzan94"]
[Result "0-1"]
[WhiteElo "2456"]
[BlackElo "2594"]
[TimeControl "180+2"]
[EndTime "13:37:39 PDT"]
[Termination "krzyzan94 won by resignation"]

1. Nf3 {[%clk 0:03:01.9]} 1... Nf6 {[%clk 0:02:59.9]} 2. d4 {[%clk 0:02:59.9]}
2... g6 {[%clk 0:03:01]} 3. e3 {[%clk 0:03:00.6]} 3... Bg7 {[%clk 0:03:02.2]} 4.
Be2 {[%clk 0:03:02.2]} 4... O-O {[%clk 0:03:04.1]} 5. O-O {[%clk 0:03:03.9]}
5... b6 {[%clk 0:03:05.1]} 6. c4 {[%clk 0:03:04.1]} 6... Bb7 {[%clk 0:03:06.7]}
7. Nc3 {[%clk 0:03:05.6]} 7... d5 {[%clk 0:03:05.8]} 8. cxd5 {[%clk 0:02:58.1]}
8... Nxd5 {[%clk 0:03:07.7]} 9. Nxd5 {[%clk 0:02:59]} 9... Qxd5 {[%clk
0:03:08.3]} 10. Qc2 {[%clk 0:02:57.7]} 10... Nc6 {[%clk 0:03:04.8]} 11. b3
{[%clk 0:02:44.7]} 11... e5 {[%clk 0:02:55]} 12. dxe5 {[%clk 0:02:46.6]} 12...
Nxe5 {[%clk 0:02:55.8]} 13. Bb2 {[%clk 0:02:47]} 13... c5 {[%clk 0:02:47.3]} 14.
Rfd1 {[%clk 0:02:39.6]} 14... Qc6 {[%clk 0:02:46.4]} 15. Rd2 {[%clk 0:02:33.9]}
15... Rad8 {[%clk 0:02:46.5]} 16. Rad1 {[%clk 0:02:34.2]} 16... Rxd2 {[%clk
0:02:46.4]} 17. Qxd2 {[%clk 0:02:33.5]} 17... Re8 {[%clk 0:02:41.1]} 18. Bc3
{[%clk 0:02:32.2]} 18... h5 {[%clk 0:02:40.4]} 19. Qb2 {[%clk 0:02:25.4]} 19...
g5 {[%clk 0:02:33.5]} 20. a4 {[%clk 0:02:14.4]} 20... g4 {[%clk 0:02:25.8]} 21.
Ne1 {[%clk 0:02:14.8]} 21... a6 {[%clk 0:02:25.3]} 22. Qc2 {[%clk 0:02:07.7]}
22... Qe6 {[%clk 0:01:58.5]} 23. Bxe5 {[%clk 0:01:35]} 23... Bxe5 {[%clk
0:01:55.2]} 24. Nd3 {[%clk 0:01:31.5]} 24... Bb8 {[%clk 0:01:55.5]} 25. Bf1
{[%clk 0:01:31.9]} 25... Be4 {[%clk 0:01:52]} 26. Qc3 {[%clk 0:01:23.2]} 26...
Qd6 {[%clk 0:01:50]} 27. g3 {[%clk 0:01:20.1]} 27... Rd8 {[%clk 0:01:47.8]} 28.
Nb2 {[%clk 0:01:14.4]} 28... Qe7 {[%clk 0:01:44.8]} 29. Rxd8+ {[%clk 0:01:11.4]}
29... Qxd8 {[%clk 0:01:46.7]} 30. Bg2 {[%clk 0:01:09]} 30... Bxg2 {[%clk
0:01:40.2]} 31. Kxg2 {[%clk 0:01:10.9]} 31... Qd5+ {[%clk 0:01:41.5]} 32. Kf1
{[%clk 0:01:02.2]} 32... Be5 {[%clk 0:01:41]} 33. Qc2 {[%clk 0:00:50]} 33...
Qh1+ {[%clk 0:01:14.6]} 34. Ke2 {[%clk 0:00:50.4]} 34... Qxh2 {[%clk 0:01:07.7]}
35. Nc4 {[%clk 0:00:35.4]} 35... Bxg3 {[%clk 0:01:07.6]} 36. Qf5 {[%clk
0:00:36.3]} 36... Bh4 {[%clk 0:00:44.5]} 37. Ne5 {[%clk 0:00:32.7]} 37... Qxf2+
{[%clk 0:00:31.2]} 38. Qxf2 {[%clk 0:00:32.5]} 38... Bxf2 {[%clk 0:00:33.1]} 39.
Kxf2 {[%clk 0:00:33.4]} 39... b5 {[%clk 0:00:34.7]} 40. a5 {[%clk 0:00:30.8]}
40... f5 {[%clk 0:00:31.7]} 41. Kg3 {[%clk 0:00:23]} 41... Kg7 {[%clk
0:00:28.5]} 42. Kh4 {[%clk 0:00:17.8]} 42... Kh6 {[%clk 0:00:18.9]} 43. Nf7+
{[%clk 0:00:18.9]} 43... Kg7 {[%clk 0:00:20]} 44. Ne5 {[%clk 0:00:20.5]} 44...
Kh6 {[%clk 0:00:21.1]} 45. Nf7+ {[%clk 0:00:21.6]} 45... Kh7 {[%clk 0:00:21.2]}
46. Ne5 {[%clk 0:00:22.4]} 46... Kg7 {[%clk 0:00:22.3]} 47. Kxh5 {[%clk
0:00:23.3]} 47... g3 {[%clk 0:00:23.2]} 48. Kh4 {[%clk 0:00:23.6]} 48... g2
{[%clk 0:00:24.3]} 49. Nf3 {[%clk 0:00:25.1]} 49... c4 {[%clk 0:00:21.8]} 50.
bxc4 {[%clk 0:00:21.2]} 50... bxc4 {[%clk 0:00:23.7]} 0-1

[Event "*** MasterClass Titled Tuesday Blitz"]
[Site "Chess.com"]
[Date "2017.10.03"]
[Round "3"]
[White "nubair1198"]
[Black "TigranLPetrosyan"]
[Result "1-0"]
[WhiteElo "2456"]
[BlackElo "2673"]
[TimeControl "180+2"]
[EndTime "13:37:51 PDT"]
[Termination "nubair1198 won on time"]

1. d4 {[%clk 0:03:01.9]} 1... g6 {[%clk 0:02:58]} 2. c4 {[%clk 0:02:58.1]} 2...
Bg7 {[%clk 0:02:59.5]} 3. e4 {[%clk 0:02:59]} 3... d6 {[%clk 0:03:01.2]} 4. Nc3
{[%clk 0:02:58.9]} 4... Nc6 {[%clk 0:02:57.1]} 5. Be3 {[%clk 0:02:56.6]} 5... e5
{[%clk 0:02:57.6]} 6. Nge2 {[%clk 0:02:56.7]} 6... exd4 {[%clk 0:02:55]} 7. Nxd4
{[%clk 0:02:57.1]} 7... Nge7 {[%clk 0:02:56.8]} 8. Be2 {[%clk 0:02:57.4]} 8...
O-O {[%clk 0:02:55.2]} 9. O-O {[%clk 0:02:58.8]} 9... f5 {[%clk 0:02:55.8]} 10.
exf5 {[%clk 0:02:58.8]} 10... Nxf5 {[%clk 0:02:47.2]} 11. Nxf5 {[%clk
0:02:56.8]} 11... Bxf5 {[%clk 0:02:49]} 12. Bf3 {[%clk 0:02:57]} 12... Qd7
{[%clk 0:02:45.8]} 13. c5 {[%clk 0:02:48]} 13... dxc5 {[%clk 0:02:31]} 14. Bxc5
{[%clk 0:01:46.5]} 14... Qxd1 {[%clk 0:02:26.3]} 15. Raxd1 {[%clk 0:01:45.3]}
15... Rfd8 {[%clk 0:02:10.4]} 16. g4 {[%clk 0:01:44.8]} 16... Bc2 {[%clk
0:01:37.1]} 17. Rxd8+ {[%clk 0:01:35.8]} 17... Rxd8 {[%clk 0:01:38.9]} 18. Rc1
{[%clk 0:01:37.2]} 18... Bxc3 {[%clk 0:01:27.1]} 19. Rxc2 {[%clk 0:01:35.1]}
19... Be5 {[%clk 0:01:09.4]} 20. Bxc6 {[%clk 0:01:20.1]} 20... bxc6 {[%clk
0:01:11.1]} 21. Kg2 {[%clk 0:01:21.5]} 21... a5 {[%clk 0:01:01.9]} 22. Be3
{[%clk 0:01:19.6]} 22... a4 {[%clk 0:00:57.8]} 23. Rxc6 {[%clk 0:01:19.5]} 23...
Rb8 {[%clk 0:00:53.2]} 24. Rc4 {[%clk 0:01:13.9]} 24... Rxb2 {[%clk 0:00:44]}
25. Re4 {[%clk 0:01:12.4]} 25... Bd6 {[%clk 0:00:33.1]} 26. Rxa4 {[%clk
0:01:13.8]} 26... Kf7 {[%clk 0:00:34.9]} 27. h4 {[%clk 0:01:11.1]} 27... Ke6
{[%clk 0:00:31.6]} 28. Re4+ {[%clk 0:01:08]} 28... Kd5 {[%clk 0:00:32.7]} 29.
Rd4+ {[%clk 0:01:09.1]} 29... Kc6 {[%clk 0:00:31.6]} 30. a4 {[%clk 0:01:07.8]}
30... Ra2 {[%clk 0:00:31.7]} 31. Kf3 {[%clk 0:01:07.6]} 31... Ra3 {[%clk
0:00:26]} 32. h5 {[%clk 0:01:07.3]} 32... Be5 {[%clk 0:00:14]} 33. Rc4+ {[%clk
0:01:06.6]} 33... Kd5 {[%clk 0:00:08.6]} 34. Rc5+ {[%clk 0:00:47.4]} 34... Ke6
{[%clk 0:00:08.4]} 35. hxg6 {[%clk 0:00:42.2]} 35... hxg6 {[%clk 0:00:10.3]} 36.
Rc6+ {[%clk 0:00:43.5]} 36... Bd6 {[%clk 0:00:11.6]} 37. Ra6 {[%clk 0:00:44.7]}
37... Kd5 {[%clk 0:00:10.4]} 38. Ra8 {[%clk 0:00:30.9]} 38... c5 {[%clk
0:00:12.3]} 39. Rg8 {[%clk 0:00:31.7]} 39... c4 {[%clk 0:00:09.3]} 40. Rxg6
{[%clk 0:00:32.4]} 40... c3 {[%clk 0:00:10.6]} 41. Ke2 {[%clk 0:00:26.8]} 41...
Be5 {[%clk 0:00:11]} 42. Rg8 {[%clk 0:00:20.8]} 42... Rxa4 {[%clk 0:00:09.7]}
43. Rd8+ {[%clk 0:00:12.6]} 43... Kc4 {[%clk 0:00:10.6]} 44. f4 {[%clk
0:00:12.8]} 44... Bf6 {[%clk 0:00:10.1]} 45. Rc8+ {[%clk 0:00:13.4]} 45... Kb3
{[%clk 0:00:11.5]} 46. g5 {[%clk 0:00:15.2]} 46... Be7 {[%clk 0:00:08.7]} 47. f5
{[%clk 0:00:16.3]} 47... Bxg5 {[%clk 0:00:04.2]} 48. Bxg5 {[%clk 0:00:16.5]}
48... c2 {[%clk 0:00:04.1]} 49. f6 {[%clk 0:00:16.3]} 1-0

[Event "*** MasterClass Titled Tuesday Blitz"]
[Site "Chess.com"]
[Date "2017.10.03"]
[Round "3"]
[White "kleinebeer98"]
[Black "Iball95"]
[Result "1-0"]
[WhiteElo "2500"]
[BlackElo "2516"]
[TimeControl "180+2"]
[EndTime "13:38:06 PDT"]
[Termination "kleinebeer98 won by checkmate"]

1. e4 {[%clk 0:03:01.9]} 1... c5 {[%clk 0:03:00.5]} 2. Nf3 {[%clk 0:02:58.9]}
2... g6 {[%clk 0:02:57.3]} 3. d4 {[%clk 0:02:59.5]} 3... cxd4 {[%clk 0:02:59.2]}
4. Qxd4 {[%clk 0:03:01.1]} 4... Nf6 {[%clk 0:03:00.1]} 5. Nc3 {[%clk 0:03:02.2]}
5... Nc6 {[%clk 0:03:01.3]} 6. Qa4 {[%clk 0:03:03.8]} 6... d6 {[%clk 0:03:02.7]}
7. e5 {[%clk 0:03:04.9]} 7... dxe5 {[%clk 0:03:03.8]} 8. Nxe5 {[%clk 0:03:06.8]}
8... Bg7 {[%clk 0:03:04.9]} 9. Nxc6 {[%clk 0:03:06.6]} 9... bxc6 {[%clk
0:03:04.7]} 10. Be2 {[%clk 0:03:05.4]} 10... O-O {[%clk 0:03:06.1]} 11. O-O
{[%clk 0:03:06]} 11... Nd5 {[%clk 0:02:58.9]} 12. Ne4 {[%clk 0:03:00.4]} 12...
Bf5 {[%clk 0:02:44.6]} 13. Bf3 {[%clk 0:02:44.5]} 13... Qb6 {[%clk 0:02:36.2]}
14. c3 {[%clk 0:02:18.4]} 14... Rfd8 {[%clk 0:02:28.4]} 15. Re1 {[%clk
0:02:07.6]} 15... a5 {[%clk 0:02:22.2]} 16. Ng3 {[%clk 0:02:03.8]} 16... Be6
{[%clk 0:02:20.3]} 17. h4 {[%clk 0:01:44.1]} 17... Rab8 {[%clk 0:02:12.2]} 18.
h5 {[%clk 0:01:36.2]} 18... Qb5 {[%clk 0:02:09.7]} 19. Qh4 {[%clk 0:01:30.1]}
19... Bf6 {[%clk 0:01:56.5]} 20. Qh2 {[%clk 0:01:13.2]} 20... a4 {[%clk
0:01:44.6]} 21. Ne4 {[%clk 0:01:07.1]} 21... Bg7 {[%clk 0:01:37.8]} 22. hxg6
{[%clk 0:01:05]} 22... hxg6 {[%clk 0:01:38.4]} 23. Ng5 {[%clk 0:01:05.2]} 23...
Bf5 {[%clk 0:01:22.4]} 24. a3 {[%clk 0:00:50]} 24... Qc5 {[%clk 0:01:11.9]} 25.
Qh4 {[%clk 0:00:34.6]} 25... Nf6 {[%clk 0:00:51.7]} 26. Be3 {[%clk 0:00:20.9]}
26... Qb5 {[%clk 0:00:49.1]} 27. Re2 {[%clk 0:00:13.4]} 27... Bd3 {[%clk
0:00:35.6]} 28. Rd2 {[%clk 0:00:13.3]} 28... Qc4 {[%clk 0:00:31.9]} 29. Qh2
{[%clk 0:00:08.3]} 29... Ng4 {[%clk 0:00:23.2]} 30. Bxg4 {[%clk 0:00:04.9]}
30... Qxg4 {[%clk 0:00:23.6]} 31. Rxd3 {[%clk 0:00:06.4]} 31... f6 {[%clk
0:00:16]} 32. Rxd8+ {[%clk 0:00:05.9]} 32... Rxd8 {[%clk 0:00:17.9]} 33. Nf3
{[%clk 0:00:05.3]} 33... e5 {[%clk 0:00:19.2]} 34. Re1 {[%clk 0:00:05.4]} 34...
Qc4 {[%clk 0:00:18.5]} 35. Qh3 {[%clk 0:00:05.5]} 35... f5 {[%clk 0:00:18.3]}
36. Bh6 {[%clk 0:00:05.7]} 36... Bf6 {[%clk 0:00:18.8]} 37. Bg5 {[%clk
0:00:05.1]} 37... Bxg5 {[%clk 0:00:17.9]} 38. Nxg5 {[%clk 0:00:07]} 38... Rd7
{[%clk 0:00:04.3]} 39. Qh6 {[%clk 0:00:08.3]} 39... Qf4 {[%clk 0:00:03.3]} 40.
Qxg6+ {[%clk 0:00:09.2]} 40... Kf8 {[%clk 0:00:04.9]} 41. Ne6+ {[%clk
0:00:09.9]} 41... Ke7 {[%clk 0:00:06.2]} 42. Nxf4 {[%clk 0:00:11.8]} 42... Kd8
{[%clk 0:00:06.4]} 43. Qxc6 {[%clk 0:00:11.2]} 43... exf4 {[%clk 0:00:07.3]} 44.
Qxa4 {[%clk 0:00:12.3]} 44... f3 {[%clk 0:00:09.2]} 45. Qxd7+ {[%clk 0:00:12.6]}
45... Kxd7 {[%clk 0:00:10.5]} 46. gxf3 {[%clk 0:00:14.5]} 46... f4 {[%clk
0:00:12.4]} 47. Re4 {[%clk 0:00:15.5]} 47... Kd6 {[%clk 0:00:14.3]} 48. Kf1
{[%clk 0:00:17.4]} 48... Kd5 {[%clk 0:00:16.2]} 49. Ke2 {[%clk 0:00:19.3]} 49...
Kc5 {[%clk 0:00:18]} 50. Kd3 {[%clk 0:00:21.2]} 50... Kd5 {[%clk 0:00:19.7]} 51.
b4 {[%clk 0:00:23.1]} 51... Kc6 {[%clk 0:00:21]} 52. a4 {[%clk 0:00:25]} 52...
Kb6 {[%clk 0:00:21.9]} 53. c4 {[%clk 0:00:26.9]} 53... Ka6 {[%clk 0:00:23.8]}
54. Kd4 {[%clk 0:00:28.8]} 54... Kb6 {[%clk 0:00:25.7]} 55. Rxf4 {[%clk
0:00:30.7]} 55... Kc7 {[%clk 0:00:27.6]} 56. Re4 {[%clk 0:00:32.6]} 56... Kc6
{[%clk 0:00:29.5]} 57. f4 {[%clk 0:00:34.5]} 57... Kd7 {[%clk 0:00:31.4]} 58. f5
{[%clk 0:00:36.4]} 58... Kd6 {[%clk 0:00:33.3]} 59. f4 {[%clk 0:00:38.3]} 59...
Kc6 {[%clk 0:00:35.2]} 60. f6 {[%clk 0:00:40.2]} 60... Kc7 {[%clk 0:00:37.1]}
61. f5 {[%clk 0:00:42.1]} 61... Kd6 {[%clk 0:00:39]} 62. f7 {[%clk 0:00:44]}
62... Kd7 {[%clk 0:00:40.9]} 63. f6 {[%clk 0:00:45.9]} 63... Kd6 {[%clk
0:00:42.8]} 64. a5 {[%clk 0:00:47.8]} 64... Kc7 {[%clk 0:00:44.7]} 65. b5 {[%clk
0:00:49.7]} 65... Kb7 {[%clk 0:00:46]} 66. c5 {[%clk 0:00:51.2]} 66... Kc7
{[%clk 0:00:47.9]} 67. Kd5 {[%clk 0:00:52.2]} 67... Kd7 {[%clk 0:00:49.8]} 68.
Re7+ {[%clk 0:00:53]} 68... Kd8 {[%clk 0:00:51]} 69. a6 {[%clk 0:00:54.9]} 69...
Kc8 {[%clk 0:00:52.3]} 70. b6 {[%clk 0:00:56.8]} 70... Kb8 {[%clk 0:00:54.2]}
71. c6 {[%clk 0:00:58.7]} 71... Ka8 {[%clk 0:00:56.1]} 72. Kd6 {[%clk
0:01:00.6]} 72... Kb8 {[%clk 0:00:58]} 73. a7+ {[%clk 0:01:01.5]} 73... Kc8
{[%clk 0:00:59.9]} 74. b7+ {[%clk 0:01:02.3]} 74... Kd8 {[%clk 0:01:01.8]} 75.
c7# {[%clk 0:01:03.8]} 1-0